Workbook

Sheet Sheet1
A3: Дата | D3: Отгрузка по уровнемерам, тн | E3: Отгрузка по расходомерам налива, тн | F3: Дельта, расчетная, тн | J3: ЕК-2
B4: Масса нефтепродукта до отгрузки, тн (расчет) | C4: Масса нефтепродукта после отгрузки, тн(расчет) | H4: Погрешность уровень | I4: Погрешность Массомер | J4: δ,тонн | K4: δ,тонн | L4: КДО тонн | M4: отрицательный КДО тонн
A5: 01.10.2022 | B5: 124.865 | C5: 31.097 | D5: =B5-C5 -> 93.768 | E5: 94.6 | F5: =D5-E5 -> -0.832 | H5: 0.5 | I5: 0.25 | J5: =H5*D5/100 -> 0.46884 | K5: =I5*E5/100 -> 0.2365 | L5: =1.1*SQRT((J5)^2+(K5)^2) -> 0.5776238107 | M5: =-L5 -> -0.5776238107
A6: 02.10.2022 | B6: 121.309 | C6: 27.518 | D6: 93.791 | E6: 94.192 | F6: =D6-E6 -> -0.401 | H6: 0.5 | I6: 0.25 | J6: 0.468955 | K6: 0.23548 | L6: 0.5772323996 | M6: -0.5772323996
A7: 03.10.2022 | B7: 119.295 | C7: 25.583 | D7: 90.7 | E7: 90 | F7: 0.7 | H7: 0.5 | I7: 0.25 | J7: 0.4535 | K7: 0.225 | L7: 0.5568730309 | M7: -0.5568730309
A8: 04.10.2022 | B8: 114.718 | C8: 21.046 | D8: 64 | E8: 64.55 | F8: -0.55 | H8: 0.5 | I8: 0.25 | J8: 0.32 | K8: 0.161375 | L8: 0.3942266958 | M8: -0.3942266958
A9: 05.10.2022 | B9: 111.829 | C9: 49.395 | D9: =B9-C9 -> 62.434 | E9: 62.704 | F9: -0.27 | H9: 0.5 | I9: 0.25 | J9: 0.31217 | K9: 0.15676 | L9: 0.3842509673 | M9: -0.3842509673
A10: 06.10.2022 | B10: 140.252 | C10: 46.736 | D10: 93.516 | E10: 94.093 | F10: -0.577 | H10: 0.5 | I10: 0.25 | J10: 0.46758 | K10: 0.2352325 | L10: 0.5757587311 | M10: -0.5757587311
A11: 07.10.2022 | B11: 140.252 | C11: 46.736 | D11: 93.516 | E11: 92.3 | F11: 1.216 | H11: 0.5 | I11: 0.25 | J11: 0.46758 | K11: 0.23075 | L11: =1.1*SQRT((J11)^2+(K11)^2) -> 0.573559682 | M11: -0.573559682
A12: 08.10.2022 | B12: 140.252 | C12: 46.736 | D12: 93.516 | E12: 93.999 | F12: -0.483 | H12: 0.5 | I12: 0.25 | J12: =H12*D12/100 -> 0.46758 | K12: =I12*E12/100 -> 0.2349975 | L12: =1.1*SQRT((J12)^2+(K12)^2) -> 0.5756426031 | M12: -0.5756426031
A13: 09.10.2022 | B13: 114.624 | C13: 21.046 | D13: 93.578 | E13: 93 | F13: 0.578 | H13: 0.5 | I13: 0.25 | J13: 0.46789 | K13: 0.2325 | L13: 0.5747195277 | M13: -0.5747195277
A14: 10.10.2022 | B14: 114.758 | C14: 21.046 | D14: 93.712 | E14: 94.29 | F14: -0.578 | H14: 0.5 | I14: 0.25 | J14: 0.46856 | K14: 0.235725 | L14: 0.5769652039 | M14: -0.5769652039
A15: 11.10.2022 | B15: 110 | C15: 20 | D15: 90 | E15: 90.57 | F15: -0.57 | H15: 0.5 | I15: 0.25 | J15: 0.45 | K15: 0.226425 | L15: 0.5541296054 | M15: -0.5541296054
A16: 12.10.2022 | B16: 130 | C16: 30 | D16: 100 | E16: 100.63 | F16: -0.63 | H16: 0.5 | I16: 0.25 | J16: 0.5 | K16: 0.251575 | L16: 0.6156954414 | M16: -0.6156954414
A17: 13.10.2022 | B17: 140 | C17: 25 | D17: 115 | E17: 115.79 | F17: -0.79 | H17: 0.5 | I17: 0.25 | J17: 0.575 | K17: 0.289475 | L17: 0.7081307355 | M17: -0.7081307355
A18: 14.10.2022 | B18: 98 | C18: 35 | D18: 63 | E18: 63.2 | F18: -0.2 | H18: 0.5 | I18: 0.25 | J18: 0.315 | K18: 0.158 | L18: 0.3876450567 | M18: -0.3876450567
A19: 15.10.2022 | B19: 98 | C19: 35 | D19: 63 | E19: 63.41 | F19: -0.41 | H19: 0.5 | I19: 0.25 | J19: 0.315 | K19: 0.158525 | L19: 0.3879043213 | M19: -0.3879043213
A20: 16.10.2022 | B20: 98 | C20: 35.1 | D20: 62.9 | E20: 63.45 | F20: -0.55 | H20: 0.5 | I20: 0.25 | J20: 0.3145 | K20: 0.158625 | L20: 0.3874626307 | M20: -0.3874626307
D21: 0 | E21: 0 | F21: 0 | H21: 0.5 | I21: 0.25 | J21: 0 | K21: 0 | L21: 0 | M21: 0
D22: 0 | E22: 0 | F22: 0 | H22: 0.5 | I22: 0.25 | J22: 0 | K22: 0 | L22: 0 | M22: 0
D23: 0 | E23: 0 | F23: 0 | H23: 0.5 | I23: 0.25 | J23: 0 | K23: 0 | L23: 0 | M23: 0
D24: 0 | E24: 0 | F24: 0 | H24: 0.5 | I24: 0.25 | J24: 0 | K24: 0 | L24: 0 | M24: 0
D25: 0 | E25: 0 | F25: 0 | H25: 0.5 | I25: 0.25 | J25: 0 | K25: 0 | L25: 0 | M25: 0
D26: 0 | E26: 0 | F26: 0 | H26: 0.5 | I26: 0.25 | J26: 0 | K26: 0 | L26: 0 | M26: 0
D27: 0 | E27: 0 | F27: 0 | H27: 0.5 | I27: 0.25 | J27: 0 | K27: 0 | L27: 0 | M27: 0
D28: 0 | E28: 0 | F28: 0 | H28: 0.5 | I28: 0.25 | J28: 0 | K28: 0 | L28: 0 | M28: 0
D29: 0 | E29: 0 | F29: 0 | H29: 0.5 | I29: 0.25 | J29: 0 | K29: 0 | L29: 0 | M29: 0
D30: 0 | E30: 0 | F30: 0 | H30: 0.5 | I30: 0.25 | J30: 0 | K30: 0 | L30: 0 | M30: 0
D31: 0 | E31: 0 | F31: 0 | H31: 0.5 | I31: 0.25 | J31: 0 | K31: 0 | L31: 0 | M31: 0
D32: 0 | E32: 0 | F32: 0 | H32: 0.5 | I32: 0.25 | J32: 0 | K32: 0 | L32: 0 | M32: 0
D33: 0 | E33: 0 | F33: 0 | H33: 0.5 | I33: 0.25 | J33: 0 | K33: 0 | L33: 0 | M33: 0
D34: 0 | E34: 0 | F34: 0 | H34: 0.5 | I34: 0.25 | J34: 0 | K34: 0 | L34: 0 | M34: 0
D35: 0 | E35: 0 | F35: 0 | H35: 0.5 | I35: 0.25 | J35: 0 | K35: 0 | L35: 0 | M35: 0
